bitfinex/quotes_ETHUSD_20250220
["timestamp","ask_amount","ask_price","bid_price","bid_amount"]
[1740075075191,6.0733,2743.3,2742.7,3.64603]
[1740075075410,5.25,2743.3,2742.9,3.6457]
[1740075075605,8.89532,2743.3,2742.8,4.29321398]
[1740075075928,5.25,2743.3,2742.8,7.93908398]
[1740075076295,5.25,2743.3,2742.8,4.29321398]
[1740075076495,6.50404,2743.3,2742.8,4.29321398]
[1740075076729,9.71818,2743.6,2742.8,7.93904398]
[1740075076929,3.64511,2743.4,2742.8,7.93904398]
[1740075078025,3.64511,2743.4,2742.8,7.93903398]
[1740075078233,3.64511,2743.4,2742.9,3.6457]
[1740075079134,9.71821,2743.6,2742.9,3.6457]
[1740075079301,4.6897642,2743.5,2742.9,3.6457]
[1740075080000,3.64515,2743.4,2742.9,3.6457]
[1740075080433,3.64515,2743.4,2742.9,7.2914]
[1740075080610,1.0447142,2743.5,2742.9,3.6457]
[1740075080611,4.6897142,2743.5,2742.9,3.6457]
[1740075080817,5.25,2743.6,2743.2,3.64536]
[1740075080998,5.25,2743.6,2743.3,3.64523]
[1740075081330,5.25,2743.6,2743.1,8.75443398]
[1740075081894,5.25,2743.6,2743.1,12.39982398]
[1740075082197,5.25,2743.6,2743.1,8.75440398]
[1740075082398,8.89486,2743.6,2743.1,8.75440398]
[1740075085035,5.25,2743.6,2743.1,8.75440398]
[1740075085224,8.89485,2743.6,2743.1,8.75440398]
[1740075085626,12.53977,2743.6,2743.1,8.75440398]
[1740075085826,8.89485,2743.6,2743.1,8.75440398]
[1740075086022,3.64464,2743.8,2743.1,8.75440398]
[1740075086214,3.64471,2743.7,2743.2,3.64533]
[1740075086411,0.8053,2743.9,2743.5,3.64487]
[1740075087417,4.44981,2743.9,2743.4,7.93832398]
[1740075088133,4.44981,2743.9,2743.5,3.64497]
[1740075088337,0.8053,2743.9,2743.6,3.64477]
[1740075088537,5.25,2744.2,2743.6,4.4385684]
[1740075088538,9.65751,2744.2,2743.6,4.4385684]
[1740075088737,3.64428,2744.1,2743.5,3.64496]
[1740075089042,3.64444,2744.0,2743.5,3.64496]
[1740075089432,3.64419,2744.1,2743.6,3.64482]
[1740075089807,3.64433,2744.0,2743.6,3.64482]
[1740075090141,3.64431,2744.0,2743.5,3.64496]
[1740075090463,9.65745,2744.2,2743.7,3.6447]
[1740075090615,9.65752,2744.2,2743.7,3.6447]
[1740075091106,6.0134,2744.2,2743.7,7.93791398]
[1740075091310,5.25,2744.2,2743.8,3.64446]
[1740075091559,4.40726,2744.4,2743.7,7.93788398]
[1740075091723,4.40726,2744.4,2743.9,3.64432]
[1740075091902,0.7634,2744.4,2743.9,3.64432]
[1740075092102,3.64361,2744.6,2744.1,3.64409]
[1740075092443,3.64372,2744.5,2744.0,7.93743398]
[1740075092942,0.7634,2744.7,2744.0,7.93743398]
[1740075093239,3.6436,2744.6,2744.0,7.93743398]
[1740075093738,5.00894,2744.7,2744.2,3.64392]
[1740075093940,1.36549,2744.7,2744.3,7.93710398]
[1740075094239,1.36549,2744.7,2744.3,4.29321398]
[1740075094425,1.36549,2744.7,2744.3,7.93711398]
[1740075094607,5.00894,2744.7,2744.3,4.29321398]
[1740075095545,3.6436,2744.6,2744.1,8.10457]
[1740075096036,5.00894,2744.7,2744.1,4.46048]
[1740075096242,5.00894,2744.7,2744.2,3.64404]
[1740075096739,5.00894,2744.7,2744.2,7.06541494]
[1740075096740,8.65241,2744.7,2744.2,7.06541494]
[1740075096942,4.40685,2744.7,2744.2,3.42137494]
[1740075097143,3.64366,2744.5,2744.2,3.42137494]
[1740075098137,3.6438,2744.4,2743.8,3.0]
[1740075098343,3.6438,2744.4,2743.9,7.06574494]
[1740075101107,3.644,2744.3,2743.9,3.42137494]
[1740075101755,3.64425,2744.1,2743.8,3.0]
[1740075102437,3.64405,2744.2,2743.9,3.42137494]
[1740075102760,4.42882,2744.3,2743.9,3.42137494]
[1740075102962,4.42879,2744.3,2743.9,3.42137494]
[1740075103160,3.64431,2744.0,2743.9,3.42137494]
[1740075103337,3.64406,2744.2,2743.7,4.39643]
[1740075103542,4.42872,2744.3,2743.8,7.06587494]
[1740075103853,3.64381,2744.4,2743.9,3.64443]
[1740075104055,7.28768,2744.4,2743.9,3.64443]
[1740075104364,0.7793,2744.5,2743.8,3.42137494]
[1740075104541,3.64398,2744.3,2743.8,7.06586494]
[1740075104955,3.64405,2744.2,2743.8,3.42137494]
[1740075105155,3.64405,2744.2,2743.8,7.06594494]
[1740075105382,3.64391,2744.3,2743.8,10.71042494]
[1740075105671,3.64391,2744.3,2743.8,7.06585494]
[1740075105867,3.64391,2744.3,2743.8,3.42137494]
[1740075105868,3.64392,2744.3,2743.8,3.42137494]
[1740075106030,4.146535,2744.3,2743.8,3.42137494]
[1740075106231,3.64416,2744.2,2743.8,3.42137494]
[1740075106546,3.64423,2744.1,2743.8,3.42137494]
[1740075108139,3.64423,2744.1,2743.7,3.42137494]
[1740075109365,3.64431,2744.0,2743.7,3.42137494]
[1740075109543,5.129894,2744.0,2743.7,3.42137494]
[1740075109929,3.64458,2743.8,2743.7,3.42137494]
[1740075110288,5.129894,2744.0,2743.7,3.42137494]
[1740075110589,3.64444,2743.9,2743.7,3.42137494]
[1740075111564,0.7566,2744.0,2743.7,3.42137494]
[1740075111867,3.644,2744.3,2743.8,3.64458]
[1740075112070,9.72477,2744.6,2744.1,3.42137494]
[1740075112242,3.6437,2744.5,2744.1,3.42137494]
[1740075112443,0.8312,2744.6,2744.3,3.64383]
[1740075112652,3.64355,2744.6,2744.1,7.06545494]
[1740075112853,3.64339,2744.7,2744.1,7.06545494]
[1740075113174,3.64351,2744.6,2744.1,7.06545494]
[1740075113689,3.64365,2744.5,2744.1,7.06545494]
[1740075114189,3.64383,2744.4,2744.1,3.42137494]
[1740075114333,0.964799,2744.7,2744.1,3.42137494]
[1740075114533,3.64373,2744.5,2744.1,3.42137494]
[1740075115191,3.64373,2744.5,2744.1,7.06553494]
[1740075116097,3.64373,2744.5,2744.1,3.42137494]
[1740075116665,3.64372,2744.5,2744.1,3.42137494]
[1740075117167,4.608289,2744.7,2744.1,7.06553494]
[1740075117474,3.64353,2744.6,2744.1,7.06547494]
[1740075117837,3.64367,2744.5,2744.1,3.42137494]
[1740075119174,3.64367,2744.5,2744.1,7.06554494]
[1740075119538,3.64367,2744.5,2744.1,3.42137494]
[1740075120173,3.64367,2744.5,2744.1,7.06552494]
[1740075120406,0.7546,2744.8,2744.1,3.42137494]
[1740075120576,3.64384,2744.4,2744.1,3.42137494]
[1740075121574,3.64397,2744.3,2743.9,3.7589]
[1740075121940,3.6438,2744.4,2743.9,7.40327]
[1740075122734,3.64374,2744.5,2744.1,7.06552494]
[1740075122939,7.28748,2744.5,2744.1,7.06552494]
[1740075123243,3.64374,2744.5,2744.1,7.06552494]
[1740075123551,3.64374,2744.5,2744.1,3.42137494]
[1740075123939,4.06816,2744.5,2744.1,2.55539994]
[1740075124151,4.06814,2744.5,2744.1,2.55539994]
[1740075124477,0.42442,2744.5,2744.1,2.55539994]
[1740075124681,4.06813,2744.5,2744.1,2.55539994]
[1740075124977,0.60046,2744.7,2744.4,3.42137494]
[1740075125152,4.41939,2745.0,2744.4,7.84224494]
[1740075125558,0.7763,2745.0,2744.4,4.19847494]
[1740075125753,0.7763,2745.0,2744.6,3.64343]
[1740075125953,1.331199,2745.0,2744.7,7.06469494]
[1740075126140,3.64339,2744.7,2744.4,4.19847494]
[1740075126345,3.64326,2744.8,2744.4,0.7771]
[1740075126566,3.64307,2745.0,2744.4,0.7771]
[1740075126783,3.64281,2745.2,2744.6,7.06482494]
[1740075126982,0.442161,2745.1,2744.6,7.06482494]
[1740075127144,3.64312,2744.9,2744.6,3.42137494]
[1740075127766,3.64351,2744.6,2744.3,3.42137494]
[1740075128078,0.8103,2744.8,2743.9,6.0207]
[1740075128378,3.64428,2744.1,2743.7,0.7707]
[1740075128943,3.64421,2744.1,2743.7,3.7707]
[1740075129146,3.64399,2744.3,2743.8,3.64454]
[1740075129362,3.64405,2744.2,2743.8,3.64454]
[1740075129681,4.976207,2744.3,2743.9,3.42137494]
[1740075130153,3.64411,2744.2,2743.9,3.42137494]
[1740075130356,4.976207,2744.3,2743.9,3.42137494]
[1740075130771,1.332257,2744.3,2743.9,3.42137494]
[1740075130983,4.976167,2744.3,2743.9,3.42137494]
[1740075131483,1.332257,2744.3,2743.9,3.42137494]
[1740075131781,4.976187,2744.3,2743.9,3.42137494]
[1740075132351,3.64386,2744.4,2743.9,3.42137494]
[1740075132778,3.64404,2744.3,2743.9,3.42137494]
[1740075133877,3.64378,2744.4,2743.9,3.42137494]
[1740075134079,6.0347,2744.5,2743.7,0.7707]
[1740075134254,3.64397,2744.3,2743.9,3.42137494]
[1740075134455,3.64406,2744.2,2743.9,3.42137494]
[1740075134989,4.976155,2744.3,2743.9,3.42137494]
[1740075135888,3.64406,2744.2,2743.9,3.42137494]
[1740075136181,1.332245,2744.3,2743.9,3.42137494]
[1740075136389,3.64378,2744.4,2743.9,3.42137494]
[1740075136582,3.64378,2744.4,2743.9,7.06572494]
[1740075137584,3.64378,2744.4,2744.0,3.64429]
[1740075137797,3.64378,2744.4,2743.9,7.06581494]
[1740075139681,3.64378,2744.4,2743.9,7.06571494]
[1740075140057,7.28763,2744.4,2743.9,7.06571494]
[1740075140387,4.451013,2744.4,2743.9,7.06571494]
[1740075140592,8.094903,2744.4,2743.9,7.06571494]
[1740075140890,4.451013,2744.4,2743.9,7.06571494]
[1740075141185,4.451013,2744.4,2743.9,10.71009494]
[1740075141392,3.64391,2744.3,2743.9,7.06571494]
[1740075141598,4.451013,2744.4,2743.9,7.06571494]
[1740075142294,4.451013,2744.4,2744.0,3.6443]
[1740075142498,4.451013,2744.4,2743.9,7.06579494]
[1740075142698,4.451013,2744.4,2743.9,7.06575494]
[1740075142863,4.451013,2744.4,2744.0,3.64425]
[1740075143477,4.451013,2744.4,2743.9,7.06580494]
[1740075143773,4.451013,2744.4,2743.9,3.42137494]
[1740075143973,4.451013,2744.4,2744.0,3.64431]
[1740075145496,0.807233,2744.4,2744.0,3.64431]
[1740075145674,0.807233,2744.4,2744.0,3.64425]
[1740075145989,4.451103,2744.4,2744.0,3.64425]
[1740075146369,0.7584,2744.7,2744.2,0.8078]
[1740075146574,3.64358,2744.6,2744.2,0.8078]
[1740075146777,3.64358,2744.6,2744.2,4.22917494]
[1740075147097,0.7584,2744.7,2744.2,7.87308494]
[1740075147593,3.64353,2744.6,2744.2,7.87308494]
[1740075147794,4.4018,2744.7,2744.2,7.87308494]
[1740075147971,3.64303,2745.0,2744.4,3.64372]
[1740075148178,3.64311,2744.9,2744.3,3.64391]
[1740075148393,3.64326,2744.8,2744.3,3.64391]
[1740075148704,4.450367,2744.8,2744.3,3.64391]
[1740075149071,3.64341,2744.7,2744.2,7.87321494]
[1740075151895,4.450467,2744.8,2744.2,4.22917494]
[1740075152105,3.64388,2744.4,2744.2,4.22917494]
[1740075152272,3.64388,2744.4,2744.2,3.42137494]
[1740075152464,3.6436,2744.6,2744.2,3.42137494]
[1740075152666,4.4530067,2744.6,2744.2,3.42137494]
[1740075152867,3.6437,2744.5,2744.2,3.42137494]
[1740075153300,3.64374,2744.5,2744.2,3.42137494]
[1740075153561,5.2282367,2744.6,2743.9,3.42137494]
[1740075153762,3.6441,2744.2,2743.9,3.42137494]
[1740075154173,4.44357,2744.1,2743.6,7.06620494]
[1740075154484,0.728798,2744.2,2743.9,3.42137494]
[1740075155166,3.64401,2744.3,2743.9,3.42137494]
[1740075155598,0.7993,2744.4,2743.9,3.42137494]
[1740075155599,3.64427,2744.1,2743.9,3.42137494]
[1740075155813,3.64431,2744.0,2743.7,3.0]
[1740075155981,4.44311,2744.4,2743.6,3.42137494]
[1740075156177,0.444311,2744.3,2743.6,3.42137494]
[1740075156372,3.64445,2743.9,2743.6,3.42137494]
[1740075156573,3.64434,2744.0,2743.6,3.42137494]
[1740075157103,3.64449,2743.9,2743.6,3.42137494]
[1740075157797,3.6446,2743.8,2743.6,3.42137494]
[1740075158198,4.08625,2743.8,2743.6,3.42137494]
[1740075158805,3.64471,2743.7,2743.6,3.42137494]
[1740075158977,3.64505,2743.5,2743.0,4.22857494]
[1740075159177,0.44165,2743.8,2743.0,4.22857494]
[1740075159178,3.64514,2743.4,2743.0,4.22857494]
[1740075159392,3.64511,2743.4,2742.9,0.79408838]
[1740075159573,3.64526,2743.3,2742.9,0.79408838]
[1740075159774,4.087831,2743.4,2742.9,4.21546332]
[1740075159969,3.64501,2743.5,2743.0,4.45277]
[1740075160175,3.64501,2743.5,2743.0,0.8072]
[1740075160377,3.64501,2743.5,2743.0,4.45284]
[1740075161172,0.7821,2743.7,2743.0,0.8072]
[1740075161368,3.64497,2743.5,2743.0,4.45281]
[1740075161619,3.64497,2743.5,2743.0,0.8072]
[1740075161786,7.732777,2743.5,2743.0,0.8072]
[1740075162104,4.087677,2743.5,2743.0,4.45281]
[1740075162483,4.42687,2743.7,2743.2,3.42137494]
[1740075162688,8.07167,2743.7,2743.2,3.42137494]
[1740075163208,3.64485,2743.6,2743.2,3.42137494]
[1740075163910,4.42687,2743.7,2743.2,3.42137494]
[1740075164087,3.64484,2743.6,2743.2,3.42137494]
[1740075164286,3.64512,2743.4,2743.2,3.42137494]
[1740075164688,0.442694,2743.5,2743.2,3.42137494]
[1740075165181,3.64514,2743.4,2743.2,3.42137494]
[1740075165778,0.44165,2743.8,2743.3,0.8223]
[1740075165985,4.45618,2744.1,2743.3,0.8223]
[1740075166191,3.64493,2743.6,2743.3,0.8223]
[1740075166807,3.64438,2744.0,2743.5,7.06623494]
[1740075167007,3.64425,2744.1,2743.6,4.45297]
[1740075167216,0.8316,2744.3,2743.8,3.42137494]
[1740075167416,3.64411,2744.2,2743.8,3.42137494]
[1740075167713,3.64424,2744.1,2743.8,3.42137494]
[1740075167882,3.64404,2744.2,2743.8,3.42137494]
[1740075168077,3.64421,2744.1,2743.8,3.42137494]
[1740075169093,7.28849,2744.1,2743.8,3.42137494]
[1740075169316,3.64421,2744.1,2743.8,3.42137494]
[1740075169491,3.64442,2744.0,2743.6,0.8082]
[1740075170080,4.456193,2744.1,2743.6,4.453]
[1740075170425,4.456193,2744.1,2743.8,3.42137494]
[1740075170893,3.64405,2744.2,2743.8,3.42137494]
[1740075172519,3.64405,2744.2,2743.8,7.06594494]
[1740075173601,3.64405,2744.2,2743.8,3.42137494]
[1740075173803,7.2882,2744.2,2743.8,3.42137494]
[1740075174415,3.64405,2744.2,2743.8,3.42137494]
[1740075174607,3.6442,2744.1,2743.8,3.42137494]
[1740075175518,0.447565,2744.2,2743.8,3.42137494]
[1740075175722,8.1196,2744.3,2743.8,7.06588494]
[1740075175905,0.8316,2744.3,2743.8,7.06588494]
[1740075176218,3.64406,2744.2,2743.8,7.06588494]
[1740075176935,0.8316,2744.3,2743.8,10.71035494]
[1740075177233,3.64408,2744.2,2743.8,7.06584494]
[1740075177432,3.64374,2744.5,2744.0,3.64419]
[1740075177636,3.64378,2744.4,2744.0,3.64419]
[1740075178004,0.364374,2744.5,2744.1,3.64411]
[1740075178228,0.364374,2744.5,2744.0,3.64419]
[1740075178451,3.6438,2744.4,2744.0,3.64419]
[1740075178847,3.6438,2744.4,2744.0,7.28843]
[1740075179142,3.6438,2744.4,2744.1,0.7777]
[1740075179328,3.64344,2744.7,2744.2,3.64398]
[1740075179633,4.091034,2744.6,2744.1,7.84324494]
[1740075180236,3.64366,2744.5,2744.1,4.19907494]
[1740075180536,3.64399,2744.3,2743.9,0.7601]
[1740075180729,3.64416,2744.2,2743.9,0.7601]
[1740075180924,3.64416,2744.2,2743.8,3.42137494]
[1740075181128,4.091966,2744.1,2743.8,3.42137494]
[1740075181331,0.447726,2744.1,2743.8,3.42137494]
[1740075181505,3.64406,2744.2,2743.8,7.06591494]
[1740075181943,3.64423,2744.1,2743.8,3.42137494]
[1740075182310,3.64423,2744.1,2743.7,7.06605494]
[1740075182506,4.47708,2744.3,2743.7,7.06606494]
[1740075183137,3.64404,2744.2,2743.7,7.06606494]
[1740075183907,0.7551,2744.5,2743.8,3.6445]
[1740075184102,0.7551,2744.5,2744.0,3.42137494]
[1740075184308,3.64378,2744.4,2744.1,0.7518]
[1740075184738,0.7551,2744.5,2744.2,3.64394]
[1740075184947,0.439851,2744.5,2744.1,4.39587]
[1740075185243,3.64314,2744.9,2744.3,3.42137494]
[1740075185446,3.64341,2744.7,2744.3,3.42137494]
[1740075185932,3.64362,2744.6,2744.1,4.39597]
[1740075186134,0.364362,2744.5,2744.2,3.64398]
[1740075186942,0.364362,2744.5,2744.2,3.64402]
[1740075187854,0.364362,2744.5,2744.1,0.7518]
[1740075188141,0.364362,2744.5,2744.1,4.39597]
[1740075188747,0.364362,2744.5,2744.1,0.7518]
[1740075188911,4.008012,2744.5,2744.1,0.7518]
[1740075189317,4.008012,2744.5,2744.1,4.39597]
[1740075189518,0.364362,2744.5,2744.1,4.39597]
[1740075189930,4.008032,2744.5,2744.1,4.39597]
[1740075190142,4.1208632,2744.4,2744.1,0.7518]
[1740075190347,3.64398,2744.3,2743.9,3.42137494]
[1740075190549,3.64398,2744.3,2743.9,7.06580494]
[1740075190719,3.64406,2744.2,2743.8,6.64457]
[1740075190920,3.64394,2744.3,2744.0,0.8321]
[1740075191153,4.16873652,2744.3,2744.0,0.8321]
[1740075192018,0.52479652,2744.3,2744.0,0.8321]
[1740075192226,3.64373,2744.5,2744.2,3.42137494]
[1740075192989,3.64323,2744.9,2744.3,0.8079]
[1740075193256,4.39708,2745.1,2744.5,3.42137494]
[1740075193419,3.64311,2745.0,2744.5,3.42137494]
[1740075193625,3.64319,2744.9,2744.5,3.42137494]
[1740075194123,0.7542,2745.1,2744.5,7.06494494]
[1740075194334,0.7592,2745.3,2744.9,3.64307]
[1740075194540,3.64275,2745.2,2744.8,3.42137494]
[1740075194941,0.7592,2745.3,2744.9,3.64304]
[1740075195142,0.005,2745.3,2745.1,3.42137494]
[1740075195966,3.6476,2745.3,2745.1,3.42137494]
[1740075196269,3.64272,2745.2,2745.1,3.42137494]
[1740075197845,3.64272,2745.2,2744.8,3.42137494]
[1740075198132,3.64295,2745.1,2744.8,3.42137494]
[1740075198546,3.64273,2745.2,2744.8,3.42137494]
[1740075199440,3.64763,2745.3,2744.8,7.06461494]
[1740075199939,0.005,2745.3,2744.8,7.06459494]
[1740075200163,3.64762,2745.3,2744.8,7.06459494]
[1740075200360,0.005,2745.3,2745.2,3.64272]
[1740075200644,0.005,2745.3,2745.2,4.45882]
[1740075203493,0.005,2745.3,2745.2,0.8161]
[1740075204455,0.005,2745.3,2745.2,4.45882]
[1740075204658,0.005,2745.3,2745.2,5.61112249]
[1740075206799,0.005,2745.3,2745.2,8.61112249]
[1740075212310,0.005,2745.3,2745.2,0.8161]
[1740075213615,0.005,2745.3,2745.2,4.45882]
[1740075214624,0.005,2745.3,2745.2,7.45882]
[1740075216017,1e-05,2745.3,2745.2,7.45882]
[1740075216214,0.005,2746.3,2746.0,3.64162]
[1740075216441,0.005,2746.3,2746.2,7.06276494]
[1740075217684,0.005,2746.3,2746.2,10.86106494]
[1740075220030,0.005,2746.5,2746.4,6.64113]
[1740075220232,0.005,2746.5,2746.4,7.43943]
[1740075221006,0.005,2747.1,2747.0,0.798]
[1740075221230,0.005,2747.1,2747.0,11.30355094]
[1740075221422,0.005,2747.1,2747.0,7.66322094]
[1740075221623,0.005,2747.1,2747.0,11.30355094]
[1740075225665,0.005,2747.1,2747.0,7.66322094]
[1740075225872,0.005,2747.1,2747.0,11.30355094]
[1740075226470,0.005,2747.1,2747.0,6.42137494]
[1740075226877,0.005,2747.1,2747.0,10.06170494]
[1740075229782,0.005,2747.1,2747.0,6.42137494]
[1740075230148,0.005,2747.1,2747.0,10.06170494]
[1740075230490,0.005,2747.1,2747.0,10.85700494]
[1740075230698,0.005,2747.1,2747.0,12.36027393]
[1740075230854,1e-05,2747.2,2747.1,7.4402]
[1740075231172,0.9050244,2748.2,2747.8,3.63925]
[1740075231392,0.1485244,2748.2,2748.1,3.42137494]
[1740075233252,0.1485244,2748.2,2748.1,7.06024494]
[1740075233754,0.1485244,2748.2,2748.1,8.90186843]
[1740075236322,0.00144409,2749.4,2749.1,3.63755]
[1740075236598,0.00144409,2749.4,2749.1,7.05892494]
[1740075236795,0.7894,2750.0,2749.6,3.6368]
[1740075236940,0.7894,2750.4,2749.9,3.42137494]
[1740075237145,0.1485244,2750.9,2749.9,3.42137494]
[1740075237381,3.63563,2750.6,2750.3,3.42137494]
[1740075237578,3.63546,2750.7,2750.3,3.42137494]
[1740075238204,3.7837044,2750.9,2750.3,7.05729494]
[1740075238493,3.7837044,2750.9,2750.6,3.42137494]
[1740075238494,0.1485244,2750.9,2750.6,3.42137494]
[1740075239987,3.63533,2750.8,2750.6,3.42137494]
[1740075240190,4.37722044,2750.8,2750.6,3.42137494]
[1740075240493,0.74189044,2750.8,2750.6,3.42137494]
[1740075240795,0.1485244,2750.9,2750.6,3.42137494]
[1740075241090,0.1485244,2750.9,2750.6,7.81951494]
[1740075241257,0.1485244,2750.9,2750.6,4.18397494]
[1740075241656,0.1485244,2750.9,2750.6,7.81952494]
[1740075242295,0.1485244,2750.9,2750.7,6.63543]
[1740075242592,0.1485244,2750.9,2750.7,3.0]
[1740075242890,0.1485244,2750.9,2750.7,6.63542]
[1740075244058,0.1485244,2750.9,2750.7,3.0]
[1740075244369,3.63413,2751.7,2751.1,3.0]
[1740075244684,0.7858,2753.3,2751.7,0.8217]
[1740075244878,3.6324,2753.0,2752.9,3.42137494]
[1740075245087,4.358866,2753.0,2752.9,3.42137494]
[1740075245395,0.726466,2753.0,2752.9,3.42137494]
[1740075245602,3.6324,2753.0,2752.9,3.42137494]
[1740075245771,3.63229,2753.1,2752.9,3.42137494]
[1740075245973,3.63228,2753.1,2752.9,3.42137494]
[1740075246186,3.7802244,2753.6,2753.0,3.7979]
[1740075246373,3.63174,2753.5,2753.0,3.42137494]
[1740075246694,3.63226,2753.1,2752.6,0.7742]
[1740075246876,3.63214,2753.2,2753.0,4.25979931]
[1740075247076,3.632,2753.3,2753.0,4.25979931]
[1740075247077,3.63226,2753.1,2753.0,4.25979931]
[1740075247296,3.63215,2753.2,2753.0,4.25979931]
[1740075247507,3.63226,2753.1,2753.0,4.25979931]
[1740075248304,3.63266,2752.8,2752.7,4.25979931]
[1740075248879,3.63266,2752.8,2752.3,4.25979931]
[1740075249204,3.63319,2752.4,2752.3,7.25979931]
[1740075249387,3.63319,2752.4,2752.3,4.25979931]
[1740075249697,3.63295,2752.6,2752.3,4.25979931]
[1740075249698,3.6331,2752.5,2752.3,4.25979931]
[1740075249899,3.63295,2752.6,2752.3,4.25979931]
[1740075250090,3.63316,2752.5,2752.3,4.25979931]
[1740075250298,3.63319,2752.4,2752.3,4.25979931]
[1740075250691,3.63319,2752.4,2752.1,4.25979931]
[1740075250882,3.63351,2752.2,2752.1,4.25979931]
[1740075251502,3.63319,2752.4,2752.1,4.25979931]
[1740075251675,3.63345,2752.2,2752.1,4.25979931]
[1740075252707,3.63363,2752.1,2751.9,4.25979931]
[1740075253014,3.63385,2751.9,2751.7,4.25979931]
[1740075253218,3.63372,2752.0,2751.7,4.25979931]
[1740075253876,3.63389,2751.9,2751.7,4.25979931]
[1740075254105,3.63372,2752.0,2751.7,4.25979931]
[1740075254306,3.63398,2751.8,2751.7,4.25979931]
[1740075254507,3.63398,2751.8,2751.4,3.0]
[1740075254508,3.63415,2751.7,2751.4,4.25979931]
[1740075254705,4.36087,2751.8,2751.3,4.25979931]
[1740075254909,0.825,2752.0,2751.3,4.25979931]
[1740075255091,3.63388,2751.9,2751.3,7.89435931]
[1740075255414,0.726664,2752.2,2751.6,7.89397931]
[1740075255616,0.825,2752.4,2751.9,4.25979931]
[1740075255784,3.6334,2752.3,2751.9,4.25979931]
[1740075256690,3.63353,2752.2,2751.9,4.25979931]
[1740075256918,4.45827,2752.4,2751.9,4.25979931]
[1740075257120,8.09159,2752.4,2751.9,4.25979931]
[1740075257292,4.45827,2752.4,2751.9,4.25979931]
[1740075257488,8.09159,2752.4,2751.9,4.25979931]
[1740075257694,3.63343,2752.3,2751.9,4.25979931]
[1740075258003,7.26686,2752.3,2751.9,4.25979931]
[1740075258241,7.26686,2752.3,2751.4,3.7926]
[1740075258242,0.7915,2753.2,2752.2,7.89320931]
[1740075258527,0.9400244,2753.6,2753.0,3.63228]
[1740075258685,0.60568184,2753.6,2753.5,3.63174]
[1740075258877,0.1485244,2753.6,2753.3,3.63191]
[1740075259081,0.1485244,2753.6,2753.5,7.89153931]
[1740075259295,0.1485244,2753.6,2753.5,11.64973931]
[1740075260523,0.1485244,2753.6,2753.5,8.01799931]
[1740075261212,0.1485244,2753.6,2753.5,7.38994]
[1740075261395,0.1485244,2753.6,2753.5,11.64973931]
[1740075262512,0.1485244,2753.6,2753.5,8.64973931]
[1740075263334,0.1485244,2753.6,2753.3,4.25979931]
[1740075266214,3.7802144,2753.6,2753.3,4.25979931]
[1740075268067,0.1485244,2753.6,2753.3,4.25979931]
[1740075268217,3.7801344,2753.6,2753.3,4.25979931]
[1740075268737,3.63187,2753.4,2753.3,4.25979931]
[1740075269044,3.63187,2753.4,2753.0,4.25979931]
[1740075270049,3.632,2753.3,2753.0,4.25979931]
[1740075270471,3.63217,2753.2,2753.0,4.25979931]
[1740075270846,3.63226,2753.1,2752.7,4.25979931]
[1740075271804,3.63248,2753.0,2752.5,12.55755]
[1740075271946,3.63266,2752.9,2752.5,8.165]
[1740075272295,3.63264,2752.9,2752.4,4.25979931]
[1740075272496,3.6328,2752.7,2752.4,4.25979931]
[1740075272649,3.63264,2752.9,2752.4,4.25979931]
[1740075272850,0.726474,2753.0,2752.2,5.08729931]
[1740075273050,3.63213,2753.2,2752.2,5.08729931]
[1740075273246,3.63227,2753.1,2752.8,4.25979931]
[1740075273646,3.63209,2753.3,2752.8,4.25979931]
[1740075274175,3.63229,2753.1,2752.8,4.25979931]
[1740075274355,3.63229,2753.1,2752.5,4.25979931]
[1740075274580,3.6324,2753.0,2752.6,3.63291]
[1740075274750,3.63215,2753.2,2752.7,3.63278]
[1740075274952,3.63215,2753.2,2752.8,4.25979931]
[1740075275153,3.63203,2753.3,2752.8,7.89239931]
[1740075276110,3.63203,2753.3,2752.8,4.25979931]
[1740075276405,3.63203,2753.3,2752.9,0.8199]
[1740075276554,3.63203,2753.3,2752.8,4.25979931]
[1740075277004,3.63216,2753.2,2752.8,4.25979931]
[1740075277906,3.63203,2753.3,2752.8,7.89241931]
[1740075278211,3.63182,2753.5,2753.0,3.63238]
[1740075278356,3.63213,2753.3,2752.8,4.25979931]
[1740075279111,3.63214,2753.2,2752.8,4.25979931]
[1740075280109,3.63221,2753.2,2752.8,4.25979931]
[1740075280617,3.63227,2753.1,2752.8,4.25979931]
[1740075280974,3.63226,2753.1,2752.8,4.25979931]
[1740075281197,5.160127,2753.1,2752.5,5.07969931]
[1740075281373,1.527847,2753.1,2752.5,5.07969931]
[1740075281595,3.6326,2752.9,2752.5,5.07969931]
[1740075281909,3.6326,2752.9,2752.5,4.25979931]
[1740075282480,0.8014,2753.1,2752.5,4.25979931]
[1740075282675,3.63211,2753.3,2752.8,4.25979931]
[1740075282919,3.63216,2753.2,2752.8,7.89239931]
[1740075283076,3.63226,2753.2,2752.8,4.25979931]
[1740075283404,3.63234,2753.1,2752.8,4.25979931]
[1740075283611,3.63246,2753.0,2752.5,11.52571931]
[1740075283816,3.63228,2753.1,2752.6,3.63287]
[1740075285011,3.63228,2753.1,2752.5,7.89275931]
[1740075285211,0.7674,2753.4,2753.1,3.63218]
[1740075285511,3.63201,2753.3,2752.8,8.72233931]
[1740075285925,3.63201,2753.3,2752.8,12.35491931]
[1740075286082,3.63222,2753.2,2752.8,0.83]
[1740075286560,3.63222,2753.2,2752.8,4.22978686]
[1740075286770,3.63226,2753.2,2752.8,4.22978686]
[1740075287014,7.2645,2753.2,2752.8,4.22978686]
[1740075287218,7.2645,2753.2,2752.8,3.39978686]
[1740075287383,4.35872,2753.1,2752.5,7.79255686]
[1740075287697,3.63227,2753.1,2752.5,3.39978686]
[1740075287900,3.6326,2752.9,2752.5,3.39978686]
[1740075288202,4.41947,2752.7,2752.3,5.25]
[1740075288500,3.63263,2752.9,2752.5,3.39978686]
[1740075288700,3.63274,2752.8,2752.5,3.39978686]
[1740075289601,0.7807,2753.2,2752.5,3.39978686]